[Event "V. Korchnoy Memorial 2018"]
[Site "St. Petersburg"]
[Date "2018.08.15"]
[Round "1"]
[White "Kamsky, Gata"]
[Black "Lagashin, Pavel"]
[Result "1-0"]
[ECO "B00"]
[WhiteElo "2675"]
[BlackElo "2101"]
[Annotator "RC"]
[PlyCount "79"]
[EventDate "2018.08.15"]
[EventType "swiss"]
[EventCountry "RUS"]
[SourceTitle "playchess.com"]
[Source "ChessBase"]
[SourceQuality "1"]
[TimeControl "5400+30"]

1. e4 {[%emt 0:00:00]} Nc6 {[%emt 0:01:52]} 2. Nf3 {[%emt 0:00:43]} d6 {[%emt 0:00:12]} 3. d4 {[%emt 0:04:02]} Nf6 {[%emt 0:00:44]} 4. Nc3 {[%emt 0:04:08]} g6 {[%emt 0:01:31]} 5. h3 {[%emt 0:03:42]} Bg7 {[%emt 0:00:32]} 6. Bg5 {[%emt 0:00:22]} O-O {[%emt 0:00:32]} 7. Be2 {[%emt 0:06:22]} h6 {[%emt 0:03:12]} 8. Be3 {[%emt 0:00:13]} e5 {[%emt 0:00:22]} 9. d5 {[%emt 0:02:36]} Ne7 {[%emt 0:00:25]} 10. Qd2 {[%emt 0:00:24]} Kh7 {[%emt 0:00:20]} 11. O-O-O {[%emt 0:00:16]} Nh5 {[%emt 0:04:07]} 12. g4 {[%emt 0:13:32]} Nf4 {[%emt 0:02:29]} 13. Bc4 {[%emt 0:00:38]} Ng2 {[%emt 0:07:54]} 14. Rhg1 {[%emt 0:00:52]} Nxe3 {[%emt 0:00:15]} 15. fxe3 {[%emt 0:00:05]} a6 {[%emt 0:02:25]} 16. Kb1 {[%emt 0:08:37]} b5 {[%emt 0:00:30]} 17. Bd3 {[%emt 0:00:31]} b4 {[%emt 0:00:56]} 18. Ne2 {[%emt 0:00:08]} a5 {[%emt 0:01:57]} 19. Ng3 {[%emt 0:02:39]} Ba6 {[%emt 0:01:42]} 20. h4 {[%emt 0:04:17]} Qb8 {[%emt 0:02:45]} 21. Bxa6 {[%emt 0:00:57]} Rxa6 {[%emt 0:00:06]} 22. Qd3 {[%emt 0:00:06]} Rb6 {[%emt 0:05:42]} 23. h5 {[%emt 0:01:10]} b3 {[%emt 0:03:38]} 24. cxb3 {[%emt 0:00:19]} a4 {[%emt 0:00:04]} 25. g5 {[%emt 0:00:49]} axb3 {[%emt 0:01:44]} 26. a3 {[%emt 0:00:05]} c5 {[%emt 0:01:18]} 27. Rc1 {[%emt 0:04:11]} Qa7 {[%emt 0:02:04]} 28. Rh1 {[%emt 0:00:47]} Ra6 {[%emt 0:02:59]} 29. Nd2 {[%emt 0:03:27]} Rb8 {[%emt 0:02:26]} 30. Nc4 {[%emt 0:00:10]} Nc8 {[%emt 0:01:55]} 31. gxh6 {[%emt 0:01:25]} Bf8 {[%emt 0:03:17]} 32. hxg6+ {[%emt 0:01:11]} fxg6 {[%emt 0:00:06]} 33. Nf1 {[%emt 0:00:54]} Nb6 {[%emt 0:00:31]} 34. Nfd2 {[%emt 0:00:07]} Na4 {[%emt 0:01:03]} 35. Rcf1 {[%emt 0:00:26]} Ra8 {[%emt 0:01:51]} 36. Rf6 {[%emt 0:01:41]} Bxh6 {[%emt 0:02:08]} 37. Qf1 {[%emt 0:00:29]} Kg7 {[%emt 0:01:34]} 38. Rg1 {[%emt 0:01:40]} Kg8 {[%emt 0:01:50]} 39. Rfxg6+ {[%emt 0:00:12]} Bg7 {[%emt 0:00:07]} 40. Qf6 {[%emt 0:00:13]} 1-0

[Event "V. Korchnoy Memorial 2018"]
[Site "St. Petersburg"]
[Date "2018.08.15"]
[Round "1"]
[White "Paravyan, David"]
[Black "Yangutov, Aleksey"]
[Result "0-1"]
[ECO "A30"]
[WhiteElo "2630"]
[BlackElo "2097"]
[Annotator "ChessBase"]
[PlyCount "120"]
[EventDate "2018.08.15"]
[EventType "swiss"]
[EventCountry "RUS"]
[SourceTitle "playchess.com"]
[Source "ChessBase"]
[SourceQuality "1"]
[TimeControl "5400+30"]

1. Nf3 {[%emt 0:00:00]} Nf6 {[%emt 0:00:20]} 2. c4 {[%emt 0:00:00]} e6 {[%emt 0:03:43]} 3. Nc3 {[%emt 0:00:16]} c5 {[%emt 0:01:33]} 4. g3 {[%emt 0:00:05]} b6 {[%emt 0:00:54]} 5. Bg2 {[%emt 0:00:04]} Bb7 {[%emt 0:00:11]} 6. O-O {[%emt 0:00:03]} Be7 {[%emt 0:00:37]} 7. d4 {[%emt 0:01:25]} cxd4 {[%emt 0:00:10]} 8. Qxd4 {[%emt 0:00:03]} O-O {[%emt 0:01:53]} 9. Bg5 {[%emt 0:03:26]} d6 {[%emt 0:12:56]} 10. Rad1 {[%emt 0:01:17]} Nbd7 {[%emt 0:03:11]} 11. Nb5 {[%emt 0:02:22]} d5 {[%emt 0:07:37]} 12. cxd5 {[%emt 0:00:07]} Bxd5 {[%emt 0:08:41]} 13. Nc3 {[%emt 0:00:42]} Bc6 {[%emt 0:06:54]} 14. e4 {[%emt 0:32:47]} h6 {[%emt 0:15:15]} 15. Bf4 {[%emt 0:00:58]} Bc5 {[%emt 0:03:44]} 16. Qd2 {[%emt 0:06:03]} Qe7 {[%emt 0:05:25]} 17. a3 {[%emt 0:26:58]} a5 {[%emt 0:05:37]} 18. Rfe1 {[%emt 0:03:56]} e5 {[%emt 0:01:33]} 19. Be3 {[%emt 0:04:14]} Rad8 {[%emt 0:01:17]} 20. Nh4 {[%emt 0:02:40]} Ng4 {[%emt 0:07:49]} 21. Nf5 {[%emt 0:01:17]} Qe6 {[%emt 0:01:17]} 22. Bxc5 {[%emt 0:00:38]} Nxc5 {[%emt 0:00:17]} 23. Qxd8 {[%emt 0:00:26]} Rxd8 {[%emt 0:00:15]} 24. Rxd8+ {[%emt 0:00:02]} Kh7 {[%emt 0:00:35]} 25. h3 {[%emt 0:04:26]} Nf6 {[%emt 0:01:08]} 26. Rd6 {[%emt 0:00:06]} Qe8 {[%emt 0:00:58]} 27. b4 {[%emt 0:04:58]} Nb7 {[%emt 0:03:01]} 28. Rdd1 {[%emt 0:00:02]} Qf8 {[%emt 0:00:48]} 29. Nd5 {[%emt 0:00:53]} axb4 {[%emt 0:01:55]} 30. axb4 {[%emt 0:00:47]} Ba4 {[%emt 0:01:27]} 31. Nxf6+ {[%emt 0:01:31]} gxf6 {[%emt 0:00:24]} 32. Ra1 {[%emt 0:00:04]} Qxb4 {[%emt 0:00:36]} 33. Reb1 {[%emt 0:00:06]} Bb3 {[%emt 0:01:33]} 34. Ra7 {[%emt 0:00:11]} Nd6 {[%emt 0:01:08]} 35. Rc7 {[%emt 0:03:04]} Nxf5 {[%emt 0:01:24]} 36. exf5 {[%emt 0:00:03]} Qd4 {[%emt 0:00:23]} 37. Rb7 {[%emt 0:01:35]} Qd3 {[%emt 0:00:58]} 38. Rc1 {[%emt 0:00:03]} b5 {[%emt 0:00:58]} 39. g4 {[%emt 0:01:20]} Bc4 {[%emt 0:00:12]} 40. Rc7 {[%emt 0:00:30]} h5 {[%emt 0:00:15]} 41. Re1 {[%emt 0:00:30]} Qd2 {[%emt 0:00:24]} 42. Re3 {[%emt 0:00:22]} Kh6 {[%emt 0:00:45]} 43. Rc8 {[%emt 0:00:30]} Qd7 {[%emt 0:00:48]} 44. Rc6 {[%emt 0:00:29]} hxg4 {[%emt 0:00:29]} 45. Rg3 {[%emt 0:00:37]} Qxf5 {[%emt 0:00:31]} 46. Rxg4 {[%emt 0:00:03]} Qb1+ {[%emt 0:00:20]} 47. Kh2 {[%emt 0:00:04]} Be6 {[%emt 0:00:08]} 48. Rg3 {[%emt 0:00:56]} Qb2 {[%emt 0:00:16]} 49. Rf3 {[%emt 0:00:34]} e4 {[%emt 0:00:37]} 50. Re3 {[%emt 0:00:21]} f5 {[%emt 0:00:16]} 51. Kg1 {[%emt 0:00:39]} b4 {[%emt 0:00:12]} 52. Rb6 {[%emt 0:00:51]} Kg7 {[%emt 0:00:18]} 53. Bf1 {[%emt 0:00:25]} b3 {[%emt 0:00:22]} 54. Rg3+ {[%emt 0:00:04]} Kf8 {[%emt 0:00:12]} 55. Rb8+ {[%emt 0:00:52]} Ke7 {[%emt 0:00:06]} 56. Rb7+ {[%emt 0:00:03]} Kf6 {[%emt 0:00:13]} 57. Rb6 {[%emt 0:00:04]} Ke5 {[%emt 0:00:05]} 58. Rb5+ {[%emt 0:00:11]} Kf4 {[%emt 0:00:07]} 59. h4 {[%emt 0:01:27]} Qc1 {[%emt 0:01:03]} 60. Rbxb3 {[%emt 0:00:57]} Bc4 {[%emt 0:00:25]} 0-1

[Event "V. Korchnoy Memorial 2018"]
[Site "St. Petersburg"]
[Date "2018.08.15"]
[Round "1"]
[White "Mchedlishvili, Mikheil"]
[Black "Stepanov, Andrey"]
[Result "1-0"]
[ECO "A05"]
[WhiteElo "2608"]
[BlackElo "2093"]
[Annotator "ChessBase"]
[PlyCount "49"]
[EventDate "2018.08.15"]
[EventType "swiss"]
[EventCountry "RUS"]
[SourceTitle "playchess.com"]
[Source "ChessBase"]
[SourceQuality "1"]
[TimeControl "5400+30"]

1. Nf3 {[%emt 0:00:00]} Nf6 {[%emt 0:00:00]} 2. c4 {[%emt 0:00:03]} g6 {[%emt 0:00:00]} 3. Nc3 {[%emt 0:00:44]} d5 {[%emt 0:00:16]} 4. cxd5 {[%emt 0:01:01]} Nxd5 {[%emt 0:00:04]} 5. Qb3 {[%emt 0:00:57]} Nb6 {[%emt 0:00:24]} 6. d4 {[%emt 0:00:53]} Bg7 {[%emt 0:00:52]} 7. Bf4 {[%emt 0:01:31]} O-O {[%emt 0:08:31]} 8. Rd1 {[%emt 0:01:24]} a5 {[%emt 0:20:23]} 9. e3 {[%emt 0:08:58]} c6 {[%emt 0:05:52]} 10. Be2 {[%emt 0:06:43]} Be6 {[%emt 0:13:19]} 11. Qc2 {[%emt 0:00:52]} Na6 {[%emt 0:00:41]} 12. O-O {[%emt 0:03:04]} Nb4 {[%emt 0:03:35]} 13. Qb1 {[%emt 0:00:40]} N6d5 {[%emt 0:02:36]} 14. Bg3 {[%emt 0:12:10]} Nxc3 {[%emt 0:12:58]} 15. bxc3 {[%emt 0:00:08]} Nxa2 {[%emt 0:00:06]} 16. Qb2 {[%emt 0:01:48]} b5 {[%emt 0:01:33]} 17. Ng5 {[%emt 0:02:30]} Bd5 {[%emt 0:01:37]} 18. c4 {[%emt 0:02:04]} e5 {[%emt 0:01:11]} 19. cxd5 {[%emt 0:02:39]} exd4 {[%emt 0:02:46]} 20. Qxa2 {[%emt 0:01:26]} Qxg5 {[%emt 0:00:10]} 21. dxc6 {[%emt 0:00:59]} dxe3 {[%emt 0:00:44]} 22. Bf3 {[%emt 0:00:41]} exf2+ {[%emt 0:05:01]} 23. Qxf2 {[%emt 0:00:17]} b4 {[%emt 0:01:42]} 24. c7 {[%emt 0:00:21]} Rae8 {[%emt 0:00:06]} 25. Bc6 {[%emt 0:01:15]} 1-0

[Event "V. Korchnoy Memorial 2018"]
[Site "St. Petersburg"]
[Date "2018.08.15"]
[Round "1"]
[White "Stupak, Kirill"]
[Black "Lugovoy, Dmitry"]
[Result "1-0"]
[ECO "A81"]
[WhiteElo "2573"]
[BlackElo "2077"]
[Annotator "ChessBase"]
[PlyCount "35"]
[EventDate "2018.08.15"]
[EventType "swiss"]
[EventCountry "RUS"]
[SourceTitle "playchess.com"]
[Source "ChessBase"]
[SourceQuality "1"]
[TimeControl "5400+30"]

1. d4 {[%emt 0:00:00]} f5 {[%emt 0:00:15]} 2. g3 {[%emt 0:00:56]} Nf6 {[%emt 0:00:31]} 3. Bg2 {[%emt 0:00:04]} g6 {[%emt 0:00:14]} 4. Nh3 {[%emt 0:00:07]} d6 {[%emt 0:01:16]} 5. d5 {[%emt 0:01:30]} c6 {[%emt 0:02:42]} 6. Nc3 {[%emt 0:01:54]} Bg7 {[%emt 0:02:19]} 7. Nf4 {[%emt 0:00:06]} Bd7 {[%emt 0:03:05]} 8. h4 {[%emt 0:00:23]} Na6 {[%emt 0:17:23]} 9. h5 {[%emt 0:00:57]} Qa5 {[%emt 0:11:49]} 10. Bd2 {[%emt 0:12:48]} Qc5 {[%emt 0:06:19]} 11. hxg6 {[%emt 0:03:16]} hxg6 {[%emt 0:05:03]} 12. Rxh8+ {[%emt 0:01:05]} Bxh8 {[%emt 0:00:07]} 13. Nxg6 {[%emt 0:01:15]} Ng4 {[%emt 0:02:43]} 14. e3 {[%emt 0:00:12]} O-O-O {[%emt 0:13:57]} 15. Na4 {[%emt 0:02:39]} Qb5 {[%emt 0:05:15]} 16. c4 {[%emt 0:00:01]} Qxc4 {[%emt 0:00:56]} 17. b3 {[%emt 0:00:10]} Nxe3 {[%emt 0:07:54]} 18. fxe3 {[%emt 0:02:15]} 1-0

[Event "V. Korchnoy Memorial 2018"]
[Site "St. Petersburg"]
[Date "2018.08.15"]
[Round "1"]
[White "Fedorov, Alexei"]
[Black "Lepaev, Andrey"]
[Result "1-0"]
[ECO "B00"]
[WhiteElo "2561"]
[BlackElo "2071"]
[Annotator "ChessBase"]
[PlyCount "63"]
[EventDate "2018.08.15"]
[EventType "swiss"]
[EventCountry "RUS"]
[SourceTitle "playchess.com"]
[Source "ChessBase"]
[SourceQuality "1"]
[TimeControl "5400+30"]

1. e4 {[%emt 0:00:00]} d6 {[%emt 0:00:00]} 2. d4 {[%emt 0:00:00]} Nf6 {[%emt 0:00:00]} 3. f3 {[%emt 0:00:00]} c5 {[%emt 0:00:00]} 4. d5 {[%emt 0:02:00]} e6 {[%emt 0:00:02]} 5. c4 {[%emt 0:00:07]} exd5 {[%emt 0:00:10]} 6. cxd5 {[%emt 0:00:14]} Be7 {[%emt 0:00:06]} 7. Nc3 {[%emt 0:01:18]} O-O {[%emt 0:00:41]} 8. Nge2 {[%emt 0:03:08]} Nh5 {[%emt 0:25:09]} 9. g3 {[%emt 0:09:29]} f5 {[%emt 0:05:44]} 10. exf5 {[%emt 0:01:39]} Bxf5 {[%emt 0:04:09]} 11. Bg2 {[%emt 0:00:30]} Re8 {[%emt 0:15:28]} 12. O-O {[%emt 0:00:20]} Nf6 {[%emt 0:00:16]} 13. g4 {[%emt 0:03:11]} Bd7 {[%emt 0:07:36]} 14. Nf4 {[%emt 0:00:40]} g6 {[%emt 0:04:47]} 15. g5 {[%emt 0:06:12]} Nh5 {[%emt 0:00:10]} 16. Nxh5 {[%emt 0:00:06]} gxh5 {[%emt 0:00:04]} 17. f4 {[%emt 0:00:08]} Bg4 {[%emt 0:01:22]} 18. Qc2 {[%emt 0:00:52]} Rf8 {[%emt 0:06:12]} 19. Bd2 {[%emt 0:05:01]} Nd7 {[%emt 0:03:26]} 20. h4 {[%emt 0:12:57]} Rf7 {[%emt 0:11:36]} 21. f5 {[%emt 0:00:58]} Ne5 {[%emt 0:01:23]} 22. f6 {[%emt 0:00:39]} Bf8 {[%emt 0:00:08]} 23. Bf4 {[%emt 0:00:12]} Qd7 {[%emt 0:09:31]} 24. Bxe5 {[%emt 0:04:05]} dxe5 {[%emt 0:00:05]} 25. g6 {[%emt 0:01:29]} hxg6 {[%emt 0:00:12]} 26. Qxg6+ {[%emt 0:00:05]} Kh8 {[%emt 0:01:04]} 27. Ne4 {[%emt 0:01:31]} c4 {[%emt 0:03:11]} 28. d6 {[%emt 0:03:13]} Rh7 {[%emt 0:00:57]} 29. Ng5 {[%emt 0:02:05]} Bxd6 {[%emt 0:00:25]} 30. f7 {[%emt 0:00:20]} Bc5+ {[%emt 0:00:05]} 31. Kh1 {[%emt 0:00:15]} Qd3 {[%emt 0:00:06]} 32. Be4 {[%emt 0:00:36]} 1-0

[Event "V. Korchnoy Memorial 2018"]
[Site "St. Petersburg"]
[Date "2018.08.15"]
[Round "1"]
[White "Vunder, Andrei"]
[Black "Zvjaginsev, Vadim"]
[Result "1/2-1/2"]
[ECO "A46"]
[WhiteElo "2101"]
[BlackElo "2643"]
[Annotator "ChessBase"]
[PlyCount "81"]
[EventDate "2018.08.15"]
[EventType "swiss"]
[EventCountry "RUS"]
[SourceTitle "playchess.com"]
[Source "ChessBase"]
[SourceQuality "1"]
[TimeControl "5400+30"]

1. d4 {[%emt 0:00:00]} Nf6 {[%emt 0:00:16]} 2. Nf3 {[%emt 0:00:00]} d6 {[%emt 0:00:32]} 3. c3 {[%emt 0:00:35]} Nbd7 {[%emt 0:03:11]} 4. Nbd2 {[%emt 0:00:16]} g6 {[%emt 0:03:59]} 5. e4 {[%emt 0:00:14]} Bg7 {[%emt 0:00:06]} 6. Bd3 {[%emt 0:00:17]} O-O {[%emt 0:00:20]} 7. O-O {[%emt 0:00:08]} Re8 {[%emt 0:06:06]} 8. Re1 {[%emt 0:00:46]} e5 {[%emt 0:01:02]} 9. dxe5 {[%emt 0:02:28]} Nxe5 {[%emt 0:02:29]} 10. Nxe5 {[%emt 0:00:23]} Rxe5 {[%emt 0:00:32]} 11. Nf3 {[%emt 0:02:00]} Bg4 {[%emt 0:04:14]} 12. h3 {[%emt 0:01:42]} Bxf3 {[%emt 0:00:27]} 13. Qxf3 {[%emt 0:00:08]} g5 {[%emt 0:06:33]} 14. Be3 {[%emt 0:10:26]} c5 {[%emt 0:01:09]} 15. Qg3 {[%emt 0:03:51]} h6 {[%emt 0:04:23]} 16. h4 {[%emt 0:02:52]} Nh5 {[%emt 0:21:24]} 17. Qg4 {[%emt 0:00:59]} gxh4 {[%emt 0:02:58]} 18. f4 {[%emt 0:04:07]} Nf6 {[%emt 0:00:16]} 19. Qxh4 {[%emt 0:00:28]} Re8 {[%emt 0:09:22]} 20. Bf2 {[%emt 0:06:05]} Qd7 {[%emt 0:03:17]} 21. Rad1 {[%emt 0:01:28]} Qg4 {[%emt 0:00:36]} 22. Qxg4 {[%emt 0:06:06]} Nxg4 {[%emt 0:00:05]} 23. Bb5 {[%emt 0:00:30]} Red8 {[%emt 0:01:13]} 24. Bh4 {[%emt 0:00:59]} Bf6 {[%emt 0:00:27]} 25. Bxf6 {[%emt 0:01:43]} Nxf6 {[%emt 0:00:04]} 26. Bc4 {[%emt 0:00:38]} Kf8 {[%emt 0:04:19]} 27. Kf2 {[%emt 0:04:41]} Rab8 {[%emt 0:03:37]} 28. a4 {[%emt 0:02:22]} a6 {[%emt 0:00:57]} 29. a5 {[%emt 0:01:01]} Rd7 {[%emt 0:01:51]} 30. Kf3 {[%emt 0:01:09]} Re8 {[%emt 0:00:07]} 31. Bb3 {[%emt 0:02:48]} Rb8 {[%emt 0:05:29]} 32. e5 {[%emt 0:05:44]} dxe5 {[%emt 0:00:13]} 33. fxe5 {[%emt 0:00:10]} Rxd1 {[%emt 0:00:08]} 34. Rxd1 {[%emt 0:00:07]} Ng8 {[%emt 0:00:25]} 35. Rd7 {[%emt 0:04:40]} Ne7 {[%emt 0:00:06]} 36. Bc4 {[%emt 0:02:05]} Ke8 {[%emt 0:02:11]} 37. Rd6 {[%emt 0:04:32]} Nc6 {[%emt 0:00:46]} 38. Ke4 {[%emt 0:01:09]} Nxa5 {[%emt 0:03:27]} 39. Rxh6 {[%emt 0:00:18]} Ke7 {[%emt 0:00:46]} 40. Bd5 {[%emt 0:00:23]} Nc6 {[%emt 0:00:23]} 41. Rh7 {[%emt 0:01:39]} 1/2-1/2

[Event "V. Korchnoy Memorial 2018"]
[Site "St. Petersburg"]
[Date "2018.08.15"]
[Round "1"]
[White "Khajrutdinov, Ildar"]
[Black "Kokarev, Dmitry"]
[Result "0-1"]
[ECO "A37"]
[WhiteElo "2097"]
[BlackElo "2608"]
[Annotator "RC"]
[PlyCount "60"]
[EventDate "2018.08.15"]
[EventType "swiss"]
[EventCountry "RUS"]
[SourceTitle "playchess.com"]
[Source "ChessBase"]
[SourceQuality "1"]
[TimeControl "5400+30"]

1. Nf3 {[%emt 0:00:00]} c5 {[%emt 0:00:00]} 2. c4 {[%emt 0:00:00]} g6 {[%emt 0:00:00]} 3. Nc3 {[%emt 0:00:02]} Bg7 {[%emt 0:00:00]} 4. g3 {[%emt 0:00:29]} Nc6 {[%emt 0:00:08]} 5. Bg2 {[%emt 0:00:15]} e6 {[%emt 0:00:08]} 6. O-O {[%emt 0:02:56]} Nge7 {[%emt 0:00:08]} 7. d3 {[%emt 0:05:36]} O-O {[%emt 0:00:14]} 8. Bd2 {[%emt 0:00:56]} d5 {[%emt 0:00:43]} 9. cxd5 {[%emt 0:00:16]} exd5 {[%emt 0:00:07]} 10. Qc1 {[%emt 0:16:30]} b6 {[%emt 0:01:20]} 11. Bh6 {[%emt 0:04:34]} d4 {[%emt 0:02:13]} 12. Bxg7 {[%emt 0:03:26]} Kxg7 {[%emt 0:00:10]} 13. Ne4 {[%emt 0:08:07]} Be6 {[%emt 0:01:03]} 14. h4 {[%emt 0:07:05]} h6 {[%emt 0:02:29]} 15. Ned2 {[%emt 0:13:23]} Nd5 {[%emt 0:06:24]} 16. Nc4 {[%emt 0:02:01]} Qc7 {[%emt 0:05:33]} 17. e4 {[%emt 0:07:35]} dxe3 {[%emt 0:04:04]} 18. Nxe3 {[%emt 0:00:07]} Nxe3 {[%emt 0:01:17]} 19. Qxe3 {[%emt 0:00:06]} Rad8 {[%emt 0:00:22]} 20. a3 {[%emt 0:06:43]} a5 {[%emt 0:03:33]} 21. Rac1 {[%emt 0:02:28]} Qd6 {[%emt 0:00:56]} 22. Rc3 {[%emt 0:08:25]} Nd4 {[%emt 0:03:50]} 23. Re1 {[%emt 0:01:58]} Bg4 {[%emt 0:04:05]} 24. Ne5 {[%emt 0:05:45]} Rfe8 {[%emt 0:01:53]} 25. Nxg4 {[%emt 0:02:16]} Rxe3 {[%emt 0:00:12]} 26. Nxe3 {[%emt 0:00:33]} a4 {[%emt 0:03:22]} 27. Nc4 {[%emt 0:00:43]} Qf6 {[%emt 0:00:36]} 28. f4 {[%emt 0:00:14]} Nb5 {[%emt 0:00:57]} 29. Rcc1 {[%emt 0:01:09]} Rxd3 {[%emt 0:00:15]} 30. Kh2 {[%emt 0:00:35]} Nd4 {[%emt 0:00:37]} 0-1

[Event "V. Korchnoy Memorial 2018"]
[Site "St. Petersburg"]
[Date "2018.08.15"]
[Round "1"]
[White "Martynyuk, Elizaveta"]
[Black "Ponkratov, Pavel"]
[Result "0-1"]
[ECO "B11"]
[WhiteElo "2090"]
[BlackElo "2605"]
[Annotator "ChessBase"]
[PlyCount "88"]
[EventDate "2018.08.15"]
[EventType "swiss"]
[EventCountry "RUS"]
[SourceTitle "playchess.com"]
[Source "ChessBase"]
[SourceQuality "1"]
[TimeControl "5400+30"]

1. e4 {[%emt 0:00:05]} c6 {[%emt 0:00:00]} 2. Nc3 {[%emt 0:00:15]} d5 {[%emt 0:00:00]} 3. Nf3 {[%emt 0:00:11]} Bg4 {[%emt 0:00:00]} 4. h3 {[%emt 0:00:19]} Bh5 {[%emt 0:00:00]} 5. exd5 {[%emt 0:00:23]} cxd5 {[%emt 0:00:04]} 6. Bb5+ {[%emt 0:00:39]} Nc6 {[%emt 0:00:04]} 7. g4 {[%emt 0:00:08]} Bg6 {[%emt 0:00:05]} 8. d4 {[%emt 0:00:07]} e6 {[%emt 0:00:38]} 9. Ne5 {[%emt 0:00:10]} Rc8 {[%emt 0:00:37]} 10. h4 {[%emt 0:00:36]} f6 {[%emt 0:00:05]} 11. Nxg6 {[%emt 0:00:06]} hxg6 {[%emt 0:00:03]} 12. h5 {[%emt 0:00:10]} Bb4 {[%emt 0:02:23]} 13. Qd3 {[%emt 0:10:33]} Nge7 {[%emt 0:00:24]} 14. Bd2 {[%emt 0:03:17]} a6 {[%emt 0:00:12]} 15. Bxc6+ {[%emt 0:01:50]} Rxc6 {[%emt 0:00:06]} 16. O-O-O {[%emt 0:01:15]} gxh5 {[%emt 0:00:04]} 17. Rh4 {[%emt 0:11:32]} Bxc3 {[%emt 0:08:41]} 18. Bxc3 {[%emt 0:00:08]} g5 {[%emt 0:00:06]} 19. Rxh5 {[%emt 0:00:27]} Rxh5 {[%emt 0:00:06]} 20. gxh5 {[%emt 0:00:04]} Nf5 {[%emt 0:00:05]} 21. h6 {[%emt 0:05:11]} Qc7 {[%emt 0:01:17]} 22. Rh1 {[%emt 0:01:21]} Qh7 {[%emt 0:00:07]} 23. Bb4 {[%emt 0:03:55]} Kf7 {[%emt 0:02:42]} 24. Bc5 {[%emt 0:02:10]} Kg8 {[%emt 0:00:48]} 25. a4 {[%emt 0:12:34]} Qc7 {[%emt 0:13:01]} 26. b4 {[%emt 0:01:53]} Qd7 {[%emt 0:05:57]} 27. Qe2 {[%emt 0:07:23]} Rc8 {[%emt 0:02:50]} 28. b5 {[%emt 0:12:05]} axb5 {[%emt 0:01:03]} 29. axb5 {[%emt 0:00:13]} Kh7 {[%emt 0:01:06]} 30. Re1 {[%emt 0:05:40]} Re8 {[%emt 0:00:36]} 31. Qh5 {[%emt 0:00:49]} Ra8 {[%emt 0:01:56]} 32. Kd2 {[%emt 0:02:46]} Rc8 {[%emt 0:00:13]} 33. Qe2 {[%emt 0:02:27]} e5 {[%emt 0:03:56]} 34. Qg4 {[%emt 0:04:43]} Qe6 {[%emt 0:01:27]} 35. f3 {[%emt 0:05:51]} Rc7 {[%emt 0:07:52]} 36. c3 {[%emt 0:02:53]} b6 {[%emt 0:03:04]} 37. Bd6 {[%emt 0:01:43]} Rc4 {[%emt 0:00:35]} 38. Bxe5 {[%emt 0:00:55]} fxe5 {[%emt 0:00:17]} 39. Rxe5 {[%emt 0:00:16]} Qxe5 {[%emt 0:00:06]} 40. dxe5 {[%emt 0:01:20]} Rxg4 {[%emt 0:00:03]} 41. fxg4 {[%emt 0:00:12]} Ne7 {[%emt 0:00:02]} 42. Kd3 {[%emt 0:01:07]} Kxh6 {[%emt 0:00:05]} 43. Ke3 {[%emt 0:00:44]} Kg6 {[%emt 0:00:04]} 44. Kd4 {[%emt 0:00:15]} Kf7 {[%emt 0:00:04]} 0-1

[Event "V. Korchnoy Memorial 2018"]
[Site "St. Petersburg"]
[Date "2018.08.15"]
[Round "1"]
[White "Ivanov, Sergei V"]
[Black "Pridorozhni, Aleksei"]
[Result "0-1"]
[ECO "B40"]
[WhiteElo "2075"]
[BlackElo "2564"]
[Annotator "ChessBase"]
[PlyCount "82"]
[EventDate "2018.08.15"]
[EventType "swiss"]
[EventCountry "RUS"]
[SourceTitle "playchess.com"]
[Source "ChessBase"]
[SourceQuality "1"]
[TimeControl "5400+30"]

1. e4 {[%emt 0:00:00]} c5 {[%emt 0:00:00]} 2. Nf3 {[%emt 0:00:00]} e6 {[%emt 0:00:00]} 3. d4 {[%emt 0:00:00]} cxd4 {[%emt 0:00:00]} 4. Nxd4 {[%emt 0:00:00]} Nf6 {[%emt 0:00:00]} 5. Nc3 {[%emt 0:00:11]} Nc6 {[%emt 0:00:00]} 6. Ndb5 {[%emt 0:00:36]} Bc5 {[%emt 0:00:00]} 7. Nd6+ {[%emt 0:00:49]} Ke7 {[%emt 0:00:05]} 8. Bf4 {[%emt 0:01:19]} e5 {[%emt 0:00:05]} 9. Nf5+ {[%emt 0:00:30]} Kf8 {[%emt 0:00:04]} 10. Bg5 {[%emt 0:00:56]} h6 {[%emt 0:00:08]} 11. Bxf6 {[%emt 0:04:43]} Qxf6 {[%emt 0:00:05]} 12. Nd5 {[%emt 0:00:46]} Qd8 {[%emt 0:00:05]} 13. Bc4 {[%emt 0:02:38]} g6 {[%emt 0:00:27]} 14. Nfe3 {[%emt 0:00:32]} Kg7 {[%emt 0:00:17]} 15. O-O {[%emt 0:00:38]} d6 {[%emt 0:00:10]} 16. c3 {[%emt 0:02:45]} a6 {[%emt 0:00:08]} 17. Kh1 {[%emt 0:03:08]} Rf8 {[%emt 0:02:04]} 18. b4 {[%emt 0:06:31]} Ba7 {[%emt 0:00:16]} 19. Qd3 {[%emt 0:02:54]} Be6 {[%emt 0:03:49]} 20. Rad1 {[%emt 0:03:48]} Rc8 {[%emt 0:01:50]} 21. Bb3 {[%emt 0:01:33]} Qg5 {[%emt 0:02:11]} 22. Nc4 {[%emt 0:05:03]} Rcd8 {[%emt 0:03:44]} 23. a4 {[%emt 0:03:32]} Ne7 {[%emt 0:07:51]} 24. Nd2 {[%emt 0:06:57]} Nxd5 {[%emt 0:02:17]} 25. Bxd5 {[%emt 0:00:26]} Bc8 {[%emt 0:00:05]} 26. Bb3 {[%emt 0:07:03]} f5 {[%emt 0:02:06]} 27. Bd5 {[%emt 0:06:45]} f4 {[%emt 0:01:30]} 28. b5 {[%emt 0:08:16]} Qe7 {[%emt 0:05:08]} 29. Nc4 {[%emt 0:05:53]} axb5 {[%emt 0:00:14]} 30. axb5 {[%emt 0:00:07]} Bc5 {[%emt 0:00:04]} 31. Nd2 {[%emt 0:03:52]} g5 {[%emt 0:01:18]} 32. f3 {[%emt 0:01:59]} h5 {[%emt 0:00:20]} 33. g3 {[%emt 0:03:27]} Bh3 {[%emt 0:01:12]} 34. gxf4 {[%emt 0:02:13]} Bxf1 {[%emt 0:00:26]} 35. Qxf1 {[%emt 0:00:18]} gxf4 {[%emt 0:00:54]} 36. Qg2+ {[%emt 0:02:37]} Kh6 {[%emt 0:00:19]} 37. Nb3 {[%emt 0:00:09]} Be3 {[%emt 0:00:23]} 38. Na5 {[%emt 0:00:14]} Rf6 {[%emt 0:00:28]} 39. Nc4 {[%emt 0:01:56]} Bc5 {[%emt 0:00:14]} 40. h4 {[%emt 0:03:29]} Rg6 {[%emt 0:00:06]} 41. Qh2 {[%emt 0:00:03]} Rg3 {[%emt 0:01:04]} 0-1